[Event "Sunway Sitges Chess Festival"]
[Date "2024.12.21"]
[White "Naoum, Spyridon"]
[Black "Velten, Paul"]
[WhiteElo "2338"]
[BlackElo "2501"]
[Round "9.14"]
[Result "1-0"]
[TimeControl "40/5400+30:1800+30"]

1. d4 {[%clk 1:27:40]} 1... Nf6 {[%clk 1:30:25]} 2. c4 {[%clk 1:28:04]} 2... e6
{[%clk 1:29:48]} 3. Nf3 {[%clk 1:28:28]} 3... d5 {[%clk 1:28:54]} 4. Nc3 {[%clk
1:28:22]} 4... c6 {[%clk 1:23:49]} 5. e3 {[%clk 1:27:25]} 5... Nbd7 {[%clk
1:23:19]} 6. Be2 {[%clk 1:27:49]} 6... Bb4 {[%clk 1:21:41]} 7. O-O {[%clk
1:26:31]} 7... O-O {[%clk 1:21:26]} 8. a3 {[%clk 1:26:06]} 8... Bxc3 {[%clk
1:17:54]} 9. bxc3 {[%clk 1:26:20]} 9... Re8 {[%clk 1:11:27]} 10. Bb2 {[%clk
1:24:17]} 10... b6 {[%clk 1:11:12]} 11. a4 {[%clk 1:22:53]} 11... Ba6 {[%clk
1:09:35]} 12. cxd5 {[%clk 1:21:04]} 12... Bxe2 {[%clk 1:07:51]} 13. Qxe2 {[%clk
1:21:30]} 13... exd5 {[%clk 1:05:56]} 14. c4 {[%clk 1:21:30]} 14... Ne4 {[%clk
1:03:46]} 15. cxd5 {[%clk 1:11:05]} 15... cxd5 {[%clk 1:03:47]} 16. Qb5 {[%clk
1:10:17]} 16... Ndf6 {[%clk 1:03:08]} 17. Ne5 {[%clk 1:10:10]} 17... a6 {[%clk
1:03:00]} 18. Qd3 {[%clk 1:03:46]} 18... Nd7 {[%clk 0:45:52]} 19. Rfc1 {[%clk
0:50:04]} 19... Re6 {[%clk 0:54:28]} 20. Rc2 {[%clk 0:47:57]} 20... Nxe5 {[%clk
0:50:27]} 21. dxe5 {[%clk 0:47:17]} 21... Nc5 {[%clk 0:49:59]} 22. Qd1 {[%clk
0:40:04]} 22... Rg6 {[%clk 0:44:11]} 23. f3 {[%clk 0:29:26]} 23... Qg5 {[%clk
0:37:44]} 24. Bd4 {[%clk 0:25:18]} 24... Rd8 {[%clk 0:31:03]} 25. a5 {[%clk
0:24:14]} 25... Nb3 {[%clk 0:29:44]} 26. axb6 {[%clk 0:24:37]} 26... Nxa1 {[%clk
0:29:53]} 27. Qxa1 {[%clk 0:25:01]} 27... Qf5 {[%clk 0:29:56]} 28. Qc3 {[%clk
0:12:23]} 28... Qxf3 {[%clk 0:28:52]} 29. b7 {[%clk 0:12:43]} 29... Qd1+ {[%clk
0:28:30]} 30. Kf2 {[%clk 0:13:09]} 30... Qh1 {[%clk 0:28:46]} 31. Kf3 {[%clk
0:10:28]} 31... Qxh2 {[%clk 0:25:17]} 32. Qc8 {[%clk 0:09:46]} 32... Qg3+ {[%clk
0:19:25]} 33. Ke2 {[%clk 0:10:12]} 33... Qxg2+ {[%clk 0:19:49]} 34. Kd3 {[%clk
0:10:04]} 34... Qf1+ {[%clk 0:20:13]} 35. Kc3 {[%clk 0:10:06]} 35... Qc4+ {[%clk
0:19:43]} 36. Qxc4 {[%clk 0:10:25]} 36... dxc4 {[%clk 0:20:09]} 37. Rb2 {[%clk
0:10:16]} 37... Rb8 {[%clk 0:19:47]} 38. Ba7 {[%clk 0:10:43]} 38... Rxb7 {[%clk
0:20:05]} 39. Rxb7 {[%clk 0:11:10]} 39... h5 {[%clk 0:20:28]} 40. Rb8+ {[%clk
0:36:32]} 40... Kh7 {[%clk 0:50:53]} 41. Rf8 {[%clk 0:36:53]} 41... Re6 {[%clk
0:23:57]} 42. Rxf7 {[%clk 0:31:57]} 42... Kg6 {[%clk 0:22:21]} 43. Rb7 {[%clk
0:25:04]} 43... h4 {[%clk 0:21:32]} 44. Kxc4 {[%clk 0:23:29]} 44... h3 {[%clk
0:21:51]} 45. Bb8 {[%clk 0:18:11]} 45... Kh5 {[%clk 0:21:14]} 46. Rb1 {[%clk
0:13:38]} 46... g5 {[%clk 0:16:50]} 47. Kd5 {[%clk 0:13:49]} 47... Re8 {[%clk
0:17:17]} 48. e6 {[%clk 0:13:36]} 48... Kg4 {[%clk 0:17:18]} 49. Bd6 {[%clk
0:12:39]} 49... Kf3 {[%clk 0:17:31]} 50. Rg1 {[%clk 0:12:10]} 50... Rh8 {[%clk
0:17:46]} 51. Rxg5 {[%clk 0:11:25]} 51... h2 {[%clk 0:17:50]} 52. Bxh2 {[%clk
0:11:31]} 52... Rxh2 {[%clk 0:18:14]} 53. e7 {[%clk 0:11:57]} 53... Rh8 {[%clk
0:18:40]} 54. Rf5+ {[%clk 0:11:26]} 54... Kxe3 {[%clk 0:19:05]} 55. Rf8 {[%clk
0:11:54]} 55... Rh5+ {[%clk 0:19:26]} 56. Kc4 {[%clk 0:12:12]} 1-0

[Variant "Standard"]
[Site "Europe Echecs"]

[Event "Sunway Sitges Chess Festival"]
[Date "2024.12.21"]
[White "Khusenkhojaev, Mustafokhuja"]
[Black "Travadon, Loic"]
[WhiteElo "2339"]
[BlackElo "2428"]
[Round "9.15"]
[Result "1-0"]
[TimeControl "40/5400+30:1800+30"]

1. d4 {[%clk 1:30:54]} 1... Nf6 {[%clk 1:30:53]} 2. c4 {[%clk 1:31:16]} 2... e6
{[%clk 1:31:15]} 3. g3 {[%clk 1:31:35]} 3... c5 {[%clk 1:31:37]} 4. d5 {[%clk
1:31:56]} 4... exd5 {[%clk 1:32:00]} 5. cxd5 {[%clk 1:32:22]} 5... d6 {[%clk
1:32:24]} 6. Nc3 {[%clk 1:32:42]} 6... g6 {[%clk 1:32:47]} 7. Bg2 {[%clk
1:33:01]} 7... Bg7 {[%clk 1:33:10]} 8. Nf3 {[%clk 1:33:21]} 8... O-O {[%clk
1:33:33]} 9. O-O {[%clk 1:32:59]} 9... Re8 {[%clk 1:33:50]} 10. Bf4 {[%clk
1:33:35]} 10... h6 {[%clk 1:34:11]} 11. Re1 {[%clk 1:32:57]} 11... g5 {[%clk
1:33:40]} 12. Bd2 {[%clk 1:30:21]} 12... Bf5 {[%clk 1:29:06]} 13. h4 {[%clk
1:33:57]} 13... g4 {[%clk 1:29:22]} 14. Nh2 {[%clk 1:34:21]} 14... h5 {[%clk
1:29:43]} 15. Bf4 {[%clk 1:18:01]} 15... Qb6 {[%clk 1:21:43]} 16. e4 {[%clk
1:13:10]} 16... Bg6 {[%clk 1:12:14]} 17. Qb3 {[%clk 1:01:49]} 17... Na6 {[%clk
0:57:40]} 18. Qxb6 {[%clk 1:02:43]} 18... axb6 {[%clk 0:54:06]} 19. a3 {[%clk
0:52:34]} 19... b5 {[%clk 0:46:47]} 20. Nxb5 {[%clk 0:45:32]} 20... Nxe4 {[%clk
1:02:24]} 21. Re2 {[%clk 0:36:04]} 21... f5 {[%clk 0:55:28]} 22. Nf1 {[%clk
0:39:52]} 22... Rad8 {[%clk 0:51:35]} 23. Ne3 {[%clk 0:38:04]} 23... c4 {[%clk
0:51:20]} 24. Nxc4 {[%clk 0:33:10]} 24... Nac5 {[%clk 0:43:27]} 25. Rd1 {[%clk
0:31:01]} 25... Nxg3 {[%clk 0:34:13]} 26. Rxe8+ {[%clk 0:27:50]} 26... Bxe8
{[%clk 0:31:03]} 27. Bxg3 {[%clk 0:24:22]} 27... Bxb5 {[%clk 0:39:36]} 28. Nxd6
{[%clk 0:21:41]} 28... Ba4 {[%clk 0:34:26]} 29. b4 {[%clk 0:16:28]} 29... Bxd1
{[%clk 0:34:23]} 30. bxc5 {[%clk 0:15:45]} 30... Bb3 {[%clk 0:33:06]} 31. Nxf5
{[%clk 0:15:12]} 31... Bf8 {[%clk 0:34:07]} 32. d6 {[%clk 0:12:25]} 32... Rc8
{[%clk 0:34:05]} 33. Nd4 {[%clk 0:12:05]} 33... Ba4 {[%clk 0:34:21]} 34. Bd5+
{[%clk 0:12:25]} 34... Kh7 {[%clk 0:34:12]} 35. Ne6 {[%clk 0:08:09]} 35... Bxd6
{[%clk 0:27:14]} 36. Bxd6 {[%clk 0:12:10]} 36... Bc6 {[%clk 0:27:34]} 37. Bxc6
{[%clk 0:12:12]} 37... bxc6 {[%clk 0:27:55]} 38. Nd4 {[%clk 0:12:18]} 38... Kg6
{[%clk 0:28:05]} 39. a4 {[%clk 0:12:42]} 39... Kf7 {[%clk 0:27:29]} 40. a5
{[%clk 0:42:14]} 40... Ra8 {[%clk 0:57:33]} 41. Nxc6 {[%clk 0:42:06]} 41... Ke6
{[%clk 0:57:58]} 42. Kg2 {[%clk 0:41:12]} 42... Ra6 {[%clk 0:58:09]} 43. Nd4+
{[%clk 0:41:26]} 43... Kd5 {[%clk 0:58:32]} 44. Ne2 {[%clk 0:41:49]} 44... Rxa5
{[%clk 0:58:46]} 45. Nf4+ {[%clk 0:42:11]} 1-0

[Variant "Standard"]
[Site "Europe Echecs"]

[Event "Sunway Sitges Chess Festival"]
[Date "2024.12.21"]
[White "Gormally, Daniel W"]
[Black "Alexiadis, Hristos"]
[WhiteElo "2424"]
[BlackElo "2341"]
[Round "9.16"]
[Result "1/2-1/2"]
[TimeControl "40/5400+30:1800+30"]

1. e4 {[%clk 1:30:57]} 1... c5 {[%clk 1:28:31]} 2. Nf3 {[%clk 1:31:04]} 2... d6
{[%clk 1:28:58]} 3. Bb5+ {[%clk 1:30:19]} 3... Nd7 {[%clk 1:29:22]} 4. d4 {[%clk
1:30:05]} 4... cxd4 {[%clk 1:29:46]} 5. Qxd4 {[%clk 1:30:11]} 5... a6 {[%clk
1:30:05]} 6. Bxd7+ {[%clk 1:30:18]} 6... Bxd7 {[%clk 1:30:28]} 7. O-O {[%clk
1:30:08]} 7... Rc8 {[%clk 1:27:48]} 8. c4 {[%clk 1:27:24]} 8... e5 {[%clk
1:25:54]} 9. Qd3 {[%clk 1:27:43]} 9... b5 {[%clk 1:26:00]} 10. Na3 {[%clk
1:25:48]} 10... Qb6 {[%clk 1:22:01]} 11. Be3 {[%clk 1:23:11]} 11... Qb7 {[%clk
1:22:25]} 12. cxb5 {[%clk 1:22:56]} 12... axb5 {[%clk 1:22:48]} 13. Rfc1 {[%clk
1:23:19]} 13... Rxc1+ {[%clk 1:17:15]} 14. Rxc1 {[%clk 1:23:40]} 14... Nf6
{[%clk 1:16:34]} 15. Nd2 {[%clk 1:20:52]} 15... Be7 {[%clk 0:56:11]} 16. Bg5
{[%clk 1:18:47]} 16... O-O {[%clk 0:56:34]} 17. Nc2 {[%clk 1:18:14]} 17... Rc8
{[%clk 0:55:37]} 18. Re1 {[%clk 1:17:17]} 18... Be6 {[%clk 0:29:05]} 19. Ne3
{[%clk 1:09:21]} 19... h6 {[%clk 0:26:59]} 20. Bxf6 {[%clk 1:07:54]} 20... Bxf6
{[%clk 0:27:24]} 21. a3 {[%clk 0:59:15]} 21... Bg5 {[%clk 0:21:25]} 22. h3
{[%clk 1:03:57]} 22... Qc6 {[%clk 0:14:47]} 23. Nf3 {[%clk 0:58:48]} 23... Bxe3
{[%clk 0:11:31]} 24. Qxe3 {[%clk 0:59:03]} 24... Qc2 {[%clk 0:11:39]} 25. Qb6
{[%clk 0:54:26]} 25... Qxb2 {[%clk 0:09:54]} 26. Qxd6 {[%clk 0:54:32]} 26... Rc2
{[%clk 0:08:59]} 27. Qxe5 {[%clk 0:51:22]} 27... Rxf2 {[%clk 0:09:12]} 28. Qxb2
{[%clk 0:50:09]} 28... Rxb2 {[%clk 0:09:37]} 29. Nd4 {[%clk 0:49:26]} 29... Bc4
{[%clk 0:09:42]} 30. Re3 {[%clk 0:44:51]} 30... Kf8 {[%clk 0:08:55]} 31. Nf5
{[%clk 0:44:39]} 31... h5 {[%clk 0:06:58]} 32. Rc3 {[%clk 0:42:54]} 32... g6
{[%clk 0:06:33]} 33. Nd6 {[%clk 0:42:13]} 33... Be6 {[%clk 0:06:36]} 34. Rc5
{[%clk 0:41:42]} 34... b4 {[%clk 0:06:41]} 35. axb4 {[%clk 0:41:50]} 35... Rxb4
{[%clk 0:07:06]} 36. e5 {[%clk 0:41:53]} 36... Rd4 {[%clk 0:05:23]} 37. Kf2
{[%clk 0:40:08]} 37... Rd2+ {[%clk 0:05:36]} 38. Kf3 {[%clk 0:39:22]} 38... Rd3+
{[%clk 0:04:05]} 39. Kf2 {[%clk 0:36:43]} 39... Rd2+ {[%clk 0:04:20]} 40. Kf3
{[%clk 1:07:06]} 40... Rd3+ {[%clk 0:33:04]} 41. Kf2 {[%clk 1:06:55]} 41... Ke7
{[%clk 0:27:10]} 42. Ne4 {[%clk 1:06:48]} 42... Bd5 {[%clk 0:16:52]} 43. Ng5
{[%clk 1:06:26]} 43... Rd2+ {[%clk 0:14:48]} 44. Ke3 {[%clk 1:06:51]} 44... Rxg2
{[%clk 0:13:29]} 45. h4 {[%clk 1:07:10]} 45... Be6 {[%clk 0:09:04]} 46. Rc7+
{[%clk 1:06:11]} 46... Kd8 {[%clk 0:08:54]} 47. Ra7 {[%clk 1:04:44]} 47... Rg4
{[%clk 0:07:30]} 48. Nxf7+ {[%clk 1:05:03]} 48... Bxf7 {[%clk 0:07:56]} 49. Rxf7
{[%clk 1:05:30]} 49... Rxh4 {[%clk 0:08:22]} 50. Rg7 {[%clk 1:04:31]} 50... Rg4
{[%clk 0:08:46]} 51. Kf3 {[%clk 1:04:47]} 51... Ke8 {[%clk 0:09:11]} 52. e6
{[%clk 1:04:38]} 52... Kf8 {[%clk 0:03:29]} 53. Rf7+ {[%clk 1:05:03]} 53... Ke8
{[%clk 0:03:55]} 54. Rg7 {[%clk 1:05:28]} 54... Rg1 {[%clk 0:01:52]} 55. Kf4
{[%clk 1:01:38]} 55... h4 {[%clk 0:02:03]} 56. Rh7 {[%clk 1:00:00]} 56... Rf1+
{[%clk 0:00:59]} 57. Kg5 {[%clk 0:59:29]} 57... h3 {[%clk 0:01:02]} 58. Rxh3
{[%clk 0:59:39]} 58... Ke7 {[%clk 0:01:28]} 59. Kxg6 {[%clk 1:00:03]} 1/2-1/2

[Variant "Standard"]
[Site "Europe Echecs"]

[Event "Sunway Sitges Chess Festival"]
[Date "2024.12.21"]
[White "Esplugas Esteve, Vicenc"]
[Black "Aloma Vidal, Robert"]
[WhiteElo "2277"]
[BlackElo "2398"]
[Round "9.17"]
[Result "1/2-1/2"]
[TimeControl "40/5400+30:1800+30"]

1. d4 {[%clk 1:30:58]} 1... Nf6 {[%clk 1:24:38]} 2. c4 {[%clk 1:31:23]} 2... c5
{[%clk 1:25:04]} 3. d5 {[%clk 1:31:39]} 3... b5 {[%clk 1:25:28]} 4. Nf3 {[%clk
1:31:31]} 4... b4 {[%clk 1:25:51]} 5. a3 {[%clk 1:30:26]} 5... g6 {[%clk
1:25:54]} 6. Be3 {[%clk 1:21:56]} 6... bxa3 {[%clk 1:18:29]} 7. Rxa3 {[%clk
1:20:49]} 7... d6 {[%clk 1:18:45]} 8. Nc3 {[%clk 1:19:00]} 8... Bg7 {[%clk
1:17:53]} 9. Bf4 {[%clk 1:14:25]} 9... O-O {[%clk 1:13:18]} 10. e4 {[%clk
1:14:42]} 10... Bg4 {[%clk 1:09:45]} 11. Be2 {[%clk 1:14:23]} 11... Nbd7 {[%clk
1:09:38]} 12. O-O {[%clk 1:13:05]} 12... Ne8 {[%clk 1:00:33]} 13. h3 {[%clk
1:09:53]} 13... Bxf3 {[%clk 0:59:32]} 14. Bxf3 {[%clk 1:10:12]} 14... Nc7 {[%clk
0:58:28]} 15. Qd2 {[%clk 1:06:07]} 15... a6 {[%clk 0:58:04]} 16. Be2 {[%clk
1:03:03]} 16... Rb8 {[%clk 0:57:35]} 17. h4 {[%clk 1:03:05]} 17... Rb4 {[%clk
0:57:02]} 18. h5 {[%clk 0:58:14]} 18... Ne5 {[%clk 0:56:59]} 19. b3 {[%clk
0:55:42]} 19... e6 {[%clk 0:49:08]} 20. Bg5 {[%clk 0:52:43]} 20... Bf6 {[%clk
0:42:17]} 21. Bxf6 {[%clk 0:51:07]} 21... Qxf6 {[%clk 0:42:44]} 22. f4 {[%clk
0:50:59]} 22... Nd7 {[%clk 0:41:21]} 23. e5 {[%clk 0:51:10]} 23... dxe5 {[%clk
0:40:04]} 24. Ne4 {[%clk 0:49:48]} 24... Qd8 {[%clk 0:34:12]} 25. dxe6 {[%clk
0:43:18]} 25... fxe6 {[%clk 0:31:04]} 26. Rd1 {[%clk 0:42:04]} 26... Nd5 {[%clk
0:28:36]} 27. Bg4 {[%clk 0:38:23]} 27... Qe7 {[%clk 0:15:41]} 28. Bxe6+ {[%clk
0:37:31]} 28... Qxe6 {[%clk 0:15:31]} 29. Ng5 {[%clk 0:29:32]} 29... Qc6 {[%clk
0:14:48]} 30. Qxd5+ {[%clk 0:27:37]} 30... Qxd5 {[%clk 0:15:12]} 31. Rxd5 {[%clk
0:27:58]} 31... Nf6 {[%clk 0:13:41]} 32. Rxc5 {[%clk 0:25:59]} 32... exf4 {[%clk
0:12:11]} 33. hxg6 {[%clk 0:24:20]} 33... hxg6 {[%clk 0:12:35]} 34. Rc6 {[%clk
0:24:14]} 34... a5 {[%clk 0:12:00]} 35. Ra6 {[%clk 0:20:46]} 35... Kh8 {[%clk
0:09:09]} 36. Kf1 {[%clk 0:18:16]} 36... Rbb8 {[%clk 0:04:46]} 37. Ne6 {[%clk
0:16:43]} 37... Rf7 {[%clk 0:04:26]} 38. Ng5 {[%clk 0:13:51]} 38... Rff8 {[%clk
0:04:47]} 39. R6xa5 {[%clk 0:13:55]} 39... Ng4 {[%clk 0:05:01]} 40. Ra7 {[%clk
0:42:09]} 40... Rf5 {[%clk 0:33:58]} 41. Ra8 {[%clk 0:38:27]} 41... Rxa8 {[%clk
0:31:19]} 42. Rxa8+ {[%clk 0:38:52]} 42... Kg7 {[%clk 0:31:44]} 43. Ne4 {[%clk
0:37:39]} 43... f3 {[%clk 0:24:59]} 44. gxf3 {[%clk 0:29:44]} 44... Rxf3+ {[%clk
0:25:18]} 45. Kg2 {[%clk 0:29:45]} 45... Rxb3 {[%clk 0:25:43]} 46. c5 {[%clk
0:29:36]} 46... Ne3+ {[%clk 0:23:56]} 47. Kf3 {[%clk 0:24:53]} 47... Nd5+ {[%clk
0:23:46]} 48. Kf2 {[%clk 0:24:52]} 48... Rb2+ {[%clk 0:23:52]} 49. Kf3 {[%clk
0:23:57]} 49... Rb3+ {[%clk 0:23:58]} 50. Kf2 {[%clk 0:23:37]} 50... Rb2+ {[%clk
0:24:21]} 51. Kf3 {[%clk 0:23:17]} 1/2-1/2

[Variant "Standard"]
[Site "Europe Echecs"]

[Event "Sunway Sitges Chess Festival"]
[Date "2024.12.21"]
[White "Sofronie, Iulian"]
[Black "Jaksland, Tim"]
[WhiteElo "2368"]
[BlackElo "2107"]
[Round "9.18"]
[Result "1-0"]
[TimeControl "40/5400+30:1800+30"]

1. d4 {[%clk 1:30:58]} 1... Nf6 {[%clk 1:30:35]} 2. Nc3 {[%clk 1:31:18]} 2... d5
{[%clk 1:30:35]} 3. Bf4 {[%clk 1:31:42]} 3... c5 {[%clk 1:26:37]} 4. e3 {[%clk
1:30:58]} 4... cxd4 {[%clk 1:26:56]} 5. exd4 {[%clk 1:31:24]} 5... a6 {[%clk
1:27:20]} 6. Nf3 {[%clk 1:31:42]} 6... Nc6 {[%clk 1:27:20]} 7. Ne5 {[%clk
1:31:31]} 7... Bd7 {[%clk 1:26:44]} 8. g3 {[%clk 1:31:02]} 8... e6 {[%clk
1:25:50]} 9. Bg2 {[%clk 1:30:40]} 9... Nxe5 {[%clk 1:21:15]} 10. dxe5 {[%clk
1:28:02]} 10... Ng8 {[%clk 1:21:39]} 11. O-O {[%clk 1:27:37]} 11... Ne7 {[%clk
1:18:27]} 12. Re1 {[%clk 1:24:56]} 12... Nc6 {[%clk 1:13:49]} 13. h4 {[%clk
1:20:16]} 13... h6 {[%clk 1:10:36]} 14. h5 {[%clk 1:17:26]} 14... Bc5 {[%clk
1:06:37]} 15. a3 {[%clk 1:13:42]} 15... Rc8 {[%clk 1:05:00]} 16. Qg4 {[%clk
1:07:00]} 16... Kf8 {[%clk 1:04:09]} 17. Qd1 {[%clk 1:00:10]} 17... Ba7 {[%clk
0:55:43]} 18. Qd3 {[%clk 0:51:51]} 18... Qb6 {[%clk 0:38:01]} 19. Nd1 {[%clk
0:45:57]} 19... Qd4 {[%clk 0:28:58]} 20. Qe2 {[%clk 0:39:36]} 20... Qb6 {[%clk
0:28:10]} 21. c3 {[%clk 0:39:38]} 21... Qb3 {[%clk 0:27:27]} 22. Be3 {[%clk
0:34:49]} 22... Bxe3 {[%clk 0:22:11]} 23. Nxe3 {[%clk 0:34:50]} 23... Na5 {[%clk
0:22:08]} 24. Rad1 {[%clk 0:33:23]} 24... Nc4 {[%clk 0:15:19]} 25. Nxd5 {[%clk
0:29:18]} 25... Qxb2 {[%clk 0:13:36]} 26. Qg4 {[%clk 0:21:39]} 26... Qxa3 {[%clk
0:09:59]} 27. Nf4 {[%clk 0:13:46]} 27... Qxc3 {[%clk 0:08:15]} 28. Bxb7 {[%clk
0:13:27]} 28... Rc7 {[%clk 0:06:00]} 29. Bg2 {[%clk 0:12:13]} 29... Qa5 {[%clk
0:04:55]} 30. Qh4 {[%clk 0:09:07]} 30... Rc8 {[%clk 0:04:15]} 31. Re4 {[%clk
0:06:02]} 31... Nb6 {[%clk 0:01:45]} 32. Red4 {[%clk 0:05:37]} 32... Qxe5 {[%clk
0:01:15]} 33. Rd6 {[%clk 0:05:00]} 33... Qg5 {[%clk 0:00:35]} 34. Rxb6 {[%clk
0:05:21]} 34... Bb5 {[%clk 0:00:34]} 35. Bf3 {[%clk 0:04:30]} 35... Qxh4 {[%clk
0:00:45]} 36. gxh4 {[%clk 0:04:55]} 36... Ke7 {[%clk 0:01:06]} 37. Rb7+ {[%clk
0:02:52]} 37... Kf6 {[%clk 0:01:34]} 38. Be2 {[%clk 0:03:06]} 38... Bxe2 {[%clk
0:01:19]} 39. Nxe2 {[%clk 0:03:31]} 39... Rhd8 {[%clk 0:01:42]} 40. Rxd8 {[%clk
0:32:59]} 40... Rxd8 {[%clk 0:32:11]} 41. Ra7 {[%clk 0:33:23]} 41... Rd2 {[%clk
0:32:13]} 42. Ng3 {[%clk 0:32:37]} 42... Rd4 {[%clk 0:23:56]} 43. Rxa6 {[%clk
0:32:48]} 43... Rxh4 {[%clk 0:24:22]} 44. Kg2 {[%clk 0:31:28]} 44... g6 {[%clk
0:18:31]} 45. hxg6 {[%clk 0:31:01]} 45... Kxg6 {[%clk 0:18:50]} 46. Ne2 {[%clk
0:29:45]} 46... Rb4 {[%clk 0:15:15]} 47. Rd6 {[%clk 0:29:49]} 47... Ra4 {[%clk
0:13:55]} 48. Nd4 {[%clk 0:29:46]} 48... Kf6 {[%clk 0:13:59]} 49. Rd7 {[%clk
0:30:00]} 49... Kg6 {[%clk 0:08:36]} 50. Nc6 {[%clk 0:29:57]} 50... f6 {[%clk
0:07:37]} 51. Rd6 {[%clk 0:28:14]} 51... Kf5 {[%clk 0:05:56]} 52. Ne7+ {[%clk
0:27:20]} 52... Ke5 {[%clk 0:06:04]} 53. Rd3 {[%clk 0:26:50]} 53... f5 {[%clk
0:05:30]} 54. Rh3 {[%clk 0:25:23]} 54... Rg4+ {[%clk 0:05:13]} 55. Kf3 {[%clk
0:25:37]} 55... Kd6 {[%clk 0:05:04]} 56. Nc8+ {[%clk 0:25:37]} 56... Kc7 {[%clk
0:05:19]} 57. Na7 {[%clk 0:25:52]} 57... Kb6 {[%clk 0:02:50]} 58. Rxh6 {[%clk
0:26:13]} 58... Kxa7 {[%clk 0:02:48]} 59. Rxe6 {[%clk 0:26:38]} 59... Kb7 {[%clk
0:02:57]} 60. Rf6 {[%clk 0:27:03]} 60... Ra4 {[%clk 0:03:02]} 61. Rxf5 {[%clk
0:27:05]} 61... Kc6 {[%clk 0:03:27]} 62. Rf4 {[%clk 0:26:34]} 62... Ra8 {[%clk
0:02:42]} 63. Rd4 {[%clk 0:26:26]} 63... Rf8+ {[%clk 0:02:25]} 64. Ke3 {[%clk
0:26:15]} 64... Kc5 {[%clk 0:02:13]} 65. f4 {[%clk 0:25:55]} 65... Ra8 {[%clk
0:01:41]} 66. Rd2 {[%clk 0:25:26]} 66... Re8+ {[%clk 0:01:52]} 67. Kf3 {[%clk
0:25:43]} 67... Rf8 {[%clk 0:02:19]} 68. Rd1 {[%clk 0:25:45]} 68... Kc4 {[%clk
0:01:51]} 69. Rd7 {[%clk 0:25:10]} 69... Kc5 {[%clk 0:02:05]} 70. Kg4 {[%clk
0:24:30]} 70... Kc6 {[%clk 0:02:11]} 71. Rd1 {[%clk 0:24:12]} 71... Rg8+ {[%clk
0:02:30]} 72. Kh5 {[%clk 0:24:35]} 72... Rf8 {[%clk 0:02:47]} 73. Kg5 {[%clk
0:25:01]} 73... Rg8+ {[%clk 0:03:09]} 74. Kh6 {[%clk 0:25:27]} 74... Rf8 {[%clk
0:02:45]} 75. Rf1 {[%clk 0:25:41]} 75... Kd7 {[%clk 0:00:46]} 76. Kg7 {[%clk
0:25:58]} 76... Rf5 {[%clk 0:00:49]} 77. Kg6 {[%clk 0:26:23]} 77... Rf8 {[%clk
0:00:42]} 78. f5 {[%clk 0:26:37]} 78... Ra8 {[%clk 0:00:34]} 79. Kf7 {[%clk
0:26:58]} 79... Ra2 {[%clk 0:00:49]} 80. Rd1+ {[%clk 0:27:22]} 80... Kc7 {[%clk
0:01:10]} 81. f6 {[%clk 0:27:48]} 81... Rf2 {[%clk 0:01:27]} 82. Kg7 {[%clk
0:28:13]} 82... Rg2+ {[%clk 0:01:53]} 83. Kf8 {[%clk 0:28:40]} 83... Rf2 {[%clk
0:02:07]} 84. f7 {[%clk 0:29:06]} 84... Rg2 {[%clk 0:02:32]} 85. Rd4 {[%clk
0:29:30]} 85... Kc6 {[%clk 0:02:19]} 86. Ke7 {[%clk 0:29:49]} 86... Re2+ {[%clk
0:02:26]} 87. Kf6 {[%clk 0:30:14]} 87... Rf2+ {[%clk 0:02:42]} 88. Kg6 {[%clk
0:30:15]} 88... Kc7 {[%clk 0:02:46]} 89. Rd5 {[%clk 0:30:40]} 89... Rf3 {[%clk
0:02:20]} 1-0

[Variant "Standard"]
[Site "Europe Echecs"]